[Event "*** Titled Tuesday 3|2 Blitz (Late)"]
[Site "Chess.com"]
[Date "2016.11.01"]
[Round "5"]
[White "KNVB"]
[Black "pKiLz5Rn9b"]
[Result "0-1"]
[WhiteElo "2572"]
[BlackElo "2504"]
[TimeControl "180+2"]
[EndTime "18:03:33 PDT"]
[Termination "pKiLz5Rn9b won on time"]

1. d4 {[%clk 0:03:02]} 1... e6 {[%clk 0:03:01.2]} 2. Nf3 {[%clk 0:03:03.9]} 2...
Nf6 {[%clk 0:03:02.4]} 3. Bf4 {[%clk 0:03:05.1]} 3... d5 {[%clk 0:03:02.3]} 4.
e3 {[%clk 0:03:06.3]} 4... Bd6 {[%clk 0:03:01.9]} 5. Bg3 {[%clk 0:03:07.5]} 5...
O-O {[%clk 0:03:02.6]} 6. Nbd2 {[%clk 0:03:07.7]} 6... b6 {[%clk 0:03:04.1]} 7.
Bd3 {[%clk 0:03:05.3]} 7... Bb7 {[%clk 0:03:05.3]} 8. O-O {[%clk 0:03:05.1]}
8... c5 {[%clk 0:03:03.9]} 9. c3 {[%clk 0:03:06.1]} 9... Nc6 {[%clk 0:03:03.6]}
10. Ne5 {[%clk 0:03:07.2]} 10... Qc7 {[%clk 0:03:02.1]} 11. f4 {[%clk
0:02:58.9]} 11... Ne7 {[%clk 0:03:02.7]} 12. Bh4 {[%clk 0:02:57.7]} 12... Ne4
{[%clk 0:03:01.7]} 13. Bxe7 {[%clk 0:02:39.1]} 13... Qxe7 {[%clk 0:03:00.3]} 14.
Nxe4 {[%clk 0:02:40.2]} 14... dxe4 {[%clk 0:03:01.3]} 15. Be2 {[%clk 0:02:41.8]}
15... Rad8 {[%clk 0:02:56.3]} 16. Qa4 {[%clk 0:02:38.5]} 16... f6 {[%clk
0:02:49.9]} 17. Nc4 {[%clk 0:01:58.2]} 17... Bb8 {[%clk 0:02:48.8]} 18. Rad1
{[%clk 0:01:54.2]} 18... Bd5 {[%clk 0:02:47.2]} 19. Rfe1 {[%clk 0:01:51.5]}
19... Rc8 {[%clk 0:02:45.5]} 20. Qb5 {[%clk 0:01:48.2]} 20... Rfd8 {[%clk
0:02:45.1]} 21. a4 {[%clk 0:01:48.7]} 21... Bc6 {[%clk 0:02:39.6]} 22. Qb3
{[%clk 0:01:49.5]} 22... Qe8 {[%clk 0:02:40.8]} 23. Ra1 {[%clk 0:01:50.1]} 23...
Bd5 {[%clk 0:02:40.2]} 24. Qa2 {[%clk 0:01:46.7]} 24... cxd4 {[%clk 0:02:38.9]}
25. cxd4 {[%clk 0:01:48.6]} 25... Qc6 {[%clk 0:02:39.1]} 26. b3 {[%clk
0:01:49.8]} 26... Bd6 {[%clk 0:02:33.8]} 27. Rac1 {[%clk 0:01:41.9]} 27... Bb4
{[%clk 0:02:29.3]} 28. Red1 {[%clk 0:01:41.6]} 28... a6 {[%clk 0:02:27.1]} 29.
Qb1 {[%clk 0:01:29.7]} 29... Qb7 {[%clk 0:02:26.2]} 30. Qb2 {[%clk 0:01:05]}
30... Rc7 {[%clk 0:02:25.3]} 31. Na3 {[%clk 0:00:45.6]} 31... Rdc8 {[%clk
0:02:23.6]} 32. Rxc7 {[%clk 0:00:46.2]} 32... Rxc7 {[%clk 0:02:25.5]} 33. Rc1
{[%clk 0:00:41.2]} 33... Kf7 {[%clk 0:02:16.4]} 34. Rxc7+ {[%clk 0:00:27.2]}
34... Qxc7 {[%clk 0:02:17.5]} 35. Bxa6 {[%clk 0:00:15.7]} 35... Bxa3 {[%clk
0:02:17.4]} 36. Qxa3 {[%clk 0:00:15.1]} 36... Qc3 {[%clk 0:02:18.6]} 37. Kf2
{[%clk 0:00:16.6]} 37... Bxb3 {[%clk 0:02:16.8]} 38. Be2 {[%clk 0:00:12.1]}
38... Qc2 {[%clk 0:02:12.6]} 39. a5 {[%clk 0:00:04]} 39... Bc4 {[%clk
0:02:11.3]} 40. axb6 {[%clk 0:00:04.4]} 40... Qxe2+ {[%clk 0:02:12.3]} 41. Kg3
{[%clk 0:00:05.9]} 41... Qe1+ {[%clk 0:02:12.3]} 42. Kh3 {[%clk 0:00:07.4]}
42... g5 {[%clk 0:02:12.3]} 43. fxg5 {[%clk 0:00:04.8]} 43... fxg5 {[%clk
0:02:14.2]} 44. g3 {[%clk 0:00:04]} 44... Qf1+ {[%clk 0:02:12.8]} 45. Kg4 {[%clk
0:00:04.1]} 45... Qf5+ {[%clk 0:02:13]} 46. Kh5 {[%clk 0:00:05.6]} 46... Be2+
{[%clk 0:02:12.2]} 0-1

[Event "*** Titled Tuesday 3|2 Blitz (Late)"]
[Site "Chess.com"]
[Date "2016.11.01"]
[Round "5"]
[White "Wilsonpalencia"]
[Black "pastouche06"]
[Result "1-0"]
[WhiteElo "2291"]
[BlackElo "2295"]
[TimeControl "180+2"]
[EndTime "18:03:36 PDT"]
[Termination "Wilsonpalencia won by checkmate"]

1. e4 {[%clk 0:03:01.9]} 1... c6 {[%clk 0:03:00.4]} 2. d4 {[%clk 0:03:02.2]}
2... d5 {[%clk 0:03:00.7]} 3. e5 {[%clk 0:03:03.2]} 3... Bf5 {[%clk 0:02:57.4]}
4. Nc3 {[%clk 0:03:03.3]} 4... e6 {[%clk 0:02:56.2]} 5. g4 {[%clk 0:03:03.7]}
5... Bg6 {[%clk 0:02:57.1]} 6. Nge2 {[%clk 0:03:03.1]} 6... c5 {[%clk
0:02:58.4]} 7. h4 {[%clk 0:03:03.6]} 7... h5 {[%clk 0:02:58.4]} 8. Nf4 {[%clk
0:03:03.5]} 8... Bh7 {[%clk 0:02:59.6]} 9. Nxh5 {[%clk 0:02:54.6]} 9... Nc6
{[%clk 0:02:58]} 10. Bb5 {[%clk 0:02:32.8]} 10... cxd4 {[%clk 0:02:38.2]} 11.
Qxd4 {[%clk 0:02:22.2]} 11... Bxc2 {[%clk 0:02:37.5]} 12. Bg5 {[%clk 0:02:05.2]}
12... Qa5 {[%clk 0:02:16.8]} 13. Rc1 {[%clk 0:01:37]} 13... Be4 {[%clk 0:02:03]}
14. O-O {[%clk 0:01:25.9]} 14... Bh7 {[%clk 0:01:50.2]} 15. Nxd5 {[%clk
0:01:19.9]} 15... Rc8 {[%clk 0:01:00.8]} 16. Rfd1 {[%clk 0:01:14.3]} 16... f6
{[%clk 0:00:21.3]} 17. exf6 {[%clk 0:00:58.8]} 17... Qxb5 {[%clk 0:00:16.4]} 18.
fxg7 {[%clk 0:00:56.3]} 18... Bxg7 {[%clk 0:00:14.5]} 19. Nxg7+ {[%clk
0:00:51.9]} 19... Kf7 {[%clk 0:00:14.9]} 20. Qf4+ {[%clk 0:00:49.5]} 20... Kxg7
{[%clk 0:00:15.1]} 21. Bh6+ {[%clk 0:00:48.1]} 21... Nxh6 {[%clk 0:00:14.3]} 22.
Qf6+ {[%clk 0:00:42.7]} 22... Kg8 {[%clk 0:00:15.6]} 23. Ne7+ {[%clk 0:00:42.4]}
23... Nxe7 {[%clk 0:00:14]} 24. Rxc8+ {[%clk 0:00:39.6]} 24... Nxc8 {[%clk
0:00:15.5]} 25. Rd8+ {[%clk 0:00:39.3]} 25... Qe8 {[%clk 0:00:15.4]} 26. Rxe8#
{[%clk 0:00:38.9]} 1-0

[Event "*** Titled Tuesday 3|2 Blitz (Late)"]
[Site "Chess.com"]
[Date "2016.11.01"]
[Round "5"]
[White "KingFlorida"]
[Black "norwaytoadog"]
[Result "1-0"]
[WhiteElo "2291"]
[BlackElo "1982"]
[TimeControl "180+2"]
[EndTime "18:03:49 PDT"]
[Termination "KingFlorida won on time"]

1. Nf3 {[%clk 0:02:56.3]} 1... Nc6 {[%clk 0:02:58.7]} 2. d4 {[%clk 0:02:54.6]}
2... d5 {[%clk 0:02:59.4]} 3. Bf4 {[%clk 0:02:54.1]} 3... Bg4 {[%clk 0:02:59.2]}
4. Nbd2 {[%clk 0:02:48.8]} 4... e6 {[%clk 0:02:59.6]} 5. e3 {[%clk 0:02:47.9]}
5... Bd6 {[%clk 0:02:59.8]} 6. Bxd6 {[%clk 0:02:46.6]} 6... cxd6 {[%clk
0:02:55.3]} 7. h3 {[%clk 0:02:45]} 7... Bh5 {[%clk 0:02:55.1]} 8. Be2 {[%clk
0:02:36.5]} 8... Qb6 {[%clk 0:02:51.9]} 9. O-O {[%clk 0:02:36.2]} 9... Nge7
{[%clk 0:02:50]} 10. b3 {[%clk 0:02:35]} 10... a5 {[%clk 0:02:48.2]} 11. c4
{[%clk 0:02:35.5]} 11... O-O {[%clk 0:02:45.8]} 12. Rc1 {[%clk 0:02:23.4]} 12...
a4 {[%clk 0:02:39.7]} 13. bxa4 {[%clk 0:02:13.8]} 13... Qa5 {[%clk 0:01:57.4]}
14. cxd5 {[%clk 0:02:07.9]} 14... exd5 {[%clk 0:01:53.9]} 15. Bb5 {[%clk
0:02:07.8]} 15... Bg6 {[%clk 0:01:46.1]} 16. Nb3 {[%clk 0:02:07.3]} 16... Qb4
{[%clk 0:01:37.1]} 17. Qd2 {[%clk 0:02:01.8]} 17... Qa3 {[%clk 0:01:33.4]} 18.
Rc3 {[%clk 0:01:57.5]} 18... Qb4 {[%clk 0:01:23.7]} 19. Ra1 {[%clk 0:01:45.9]}
19... Na5 {[%clk 0:01:21]} 20. Rc7 {[%clk 0:01:24.9]} 20... Qxd2 {[%clk
0:01:14.9]} 21. Nfxd2 {[%clk 0:01:26.8]} 21... Nec6 {[%clk 0:01:06]} 22. Rc1
{[%clk 0:01:25.3]} 22... Nb4 {[%clk 0:00:53.3]} 23. Nxa5 {[%clk 0:01:21.3]}
23... Rxa5 {[%clk 0:00:52.3]} 24. a3 {[%clk 0:01:02.2]} 24... Nd3 {[%clk
0:00:52.2]} 25. R1c3 {[%clk 0:00:59.1]} 25... Nb2 {[%clk 0:00:49.2]} 26. Nb3
{[%clk 0:00:51.9]} 26... Ra7 {[%clk 0:00:44.2]} 27. a5 {[%clk 0:00:52.6]} 27...
Nd1 {[%clk 0:00:30.8]} 28. Rc1 {[%clk 0:00:49.8]} 28... Nb2 {[%clk 0:00:29.7]}
29. a6 {[%clk 0:00:45.5]} 1-0

[Event "*** Titled Tuesday 3|2 Blitz (Late)"]
[Site "Chess.com"]
[Date "2016.11.01"]
[Round "5"]
[White "dretch"]
[Black "theprosecution1"]
[Result "1/2-1/2"]
[WhiteElo "2624"]
[BlackElo "2507"]
[TimeControl "180+2"]
[EndTime "18:05:26 PDT"]
[Termination "Game drawn by repetition"]

1. d4 {[%clk 0:03:01.9]} 1... Nf6 {[%clk 0:02:55.6]} 2. c4 {[%clk 0:03:03.2]}
2... g6 {[%clk 0:02:56.2]} 3. Nc3 {[%clk 0:03:04.6]} 3... d5 {[%clk 0:02:56.2]}
4. Bf4 {[%clk 0:03:03.2]} 4... Bg7 {[%clk 0:02:55.3]} 5. e3 {[%clk 0:03:04.2]}
5... O-O {[%clk 0:02:55.8]} 6. Rc1 {[%clk 0:03:05.5]} 6... c5 {[%clk 0:02:56.2]}
7. dxc5 {[%clk 0:03:05.6]} 7... Qa5 {[%clk 0:02:56.2]} 8. cxd5 {[%clk
0:03:05.6]} 8... Nbd7 {[%clk 0:02:43.1]} 9. Qd2 {[%clk 0:02:46.8]} 9... Nxc5
{[%clk 0:02:40.7]} 10. f3 {[%clk 0:02:47.9]} 10... e6 {[%clk 0:02:09.9]} 11. Nb5
{[%clk 0:02:37.9]} 11... Qxd2+ {[%clk 0:01:40.1]} 12. Kxd2 {[%clk 0:02:39.8]}
12... Na6 {[%clk 0:01:41.9]} 13. d6 {[%clk 0:02:34.8]} 13... Nd5 {[%clk
0:01:42.9]} 14. Nh3 {[%clk 0:02:09.9]} 14... Bd7 {[%clk 0:01:42.4]} 15. Nc3
{[%clk 0:02:07.2]} 15... Nxc3 {[%clk 0:01:23.2]} 16. bxc3 {[%clk 0:02:07.1]}
16... Nc5 {[%clk 0:01:24.7]} 17. e4 {[%clk 0:02:04.7]} 17... e5 {[%clk 0:01:22]}
18. Be3 {[%clk 0:02:05.7]} 18... Rac8 {[%clk 0:01:22.6]} 19. Nf2 {[%clk
0:02:03.4]} 19... Be6 {[%clk 0:01:23.1]} 20. Nd3 {[%clk 0:01:54.4]} 20... Nxd3
{[%clk 0:01:18.6]} 21. Bxd3 {[%clk 0:01:56.3]} 21... b6 {[%clk 0:01:20.4]} 22.
c4 {[%clk 0:01:46.4]} 22... Rfd8 {[%clk 0:01:20.8]} 23. c5 {[%clk 0:01:47.8]}
23... bxc5 {[%clk 0:01:22.6]} 24. Bxc5 {[%clk 0:01:47.4]} 24... Bxa2 {[%clk
0:01:23.4]} 25. Rc2 {[%clk 0:01:32.7]} 25... Bb3 {[%clk 0:01:18.2]} 26. Rc3
{[%clk 0:01:32.2]} 26... Be6 {[%clk 0:01:19.2]} 27. Ra1 {[%clk 0:01:25.9]} 27...
Bf8 {[%clk 0:01:14.9]} 28. Ra6 {[%clk 0:01:18.7]} 28... h5 {[%clk 0:00:42.6]}
29. Kc2 {[%clk 0:00:39.5]} 29... Kg7 {[%clk 0:00:34.5]} 30. Bb5 {[%clk
0:00:31.4]} 30... Kg8 {[%clk 0:00:31.4]} 31. Ba4 {[%clk 0:00:28.5]} 31... Kg7
{[%clk 0:00:28.5]} 32. Ba3 {[%clk 0:00:20.1]} 32... Rxc3+ {[%clk 0:00:21.3]} 33.
Kxc3 {[%clk 0:00:22]} 33... Bc8 {[%clk 0:00:22.9]} 34. Rxa7 {[%clk 0:00:16.2]}
34... Bxd6 {[%clk 0:00:24]} 35. Bxd6 {[%clk 0:00:15.8]} 35... Rxd6 {[%clk
0:00:25.9]} 36. Bb3 {[%clk 0:00:14.5]} 36... Be6 {[%clk 0:00:26.7]} 37. Bxe6
{[%clk 0:00:14.5]} 37... Rxe6 {[%clk 0:00:27.9]} 38. Kc4 {[%clk 0:00:15.7]}
38... Rd6 {[%clk 0:00:27.9]} 39. Ra2 {[%clk 0:00:13.4]} 39... Kf6 {[%clk
0:00:28.4]} 40. Kc3 {[%clk 0:00:14.3]} 40... h4 {[%clk 0:00:28.9]} 41. g3 {[%clk
0:00:14.4]} 41... hxg3 {[%clk 0:00:29.2]} 42. hxg3 {[%clk 0:00:15.7]} 42... Ke6
{[%clk 0:00:29.8]} 43. Ra8 {[%clk 0:00:15.4]} 43... f5 {[%clk 0:00:30.4]} 44.
Rg8 {[%clk 0:00:14.4]} 44... Kf7 {[%clk 0:00:31.1]} 45. Rc8 {[%clk 0:00:14.7]}
45... fxe4 {[%clk 0:00:29.4]} 46. fxe4 {[%clk 0:00:16]} 46... Rd1 {[%clk
0:00:31]} 47. Rc7+ {[%clk 0:00:09.2]} 47... Kf6 {[%clk 0:00:31.8]} 48. Rc6+
{[%clk 0:00:10.7]} 48... Kf7 {[%clk 0:00:30.2]} 49. Rc7+ {[%clk 0:00:10.6]}
49... Kf6 {[%clk 0:00:31]} 50. Rc6+ {[%clk 0:00:11.9]} 50... Kf7 {[%clk
0:00:28.7]} 51. Rc7+ {[%clk 0:00:13.1]} 51... Kf6 {[%clk 0:00:26.1]} 1/2-1/2

[Event "*** Titled Tuesday 3|2 Blitz (Late)"]
[Site "Chess.com"]
[Date "2016.11.01"]
[Round "5"]
[White "wonderfultime"]
[Black "Izoria123"]
[Result "0-1"]
[WhiteElo "2693"]
[BlackElo "2583"]
[TimeControl "180+2"]
[EndTime "18:05:34 PDT"]
[Termination "Izoria123 won by resignation"]

1. d4 {[%clk 0:02:59.7]} 1... Nf6 {[%clk 0:02:57]} 2. c4 {[%clk 0:03:00.7]} 2...
g6 {[%clk 0:02:57.6]} 3. Nc3 {[%clk 0:03:01.3]} 3... Bg7 {[%clk 0:02:59.1]} 4.
e4 {[%clk 0:03:02.5]} 4... d6 {[%clk 0:03:00.7]} 5. f3 {[%clk 0:03:03.8]} 5...
O-O {[%clk 0:03:02.3]} 6. Be3 {[%clk 0:03:05]} 6... c5 {[%clk 0:02:58]} 7. Nge2
{[%clk 0:03:05.5]} 7... Nc6 {[%clk 0:02:44.8]} 8. d5 {[%clk 0:03:06.4]} 8... Na5
{[%clk 0:02:45.6]} 9. Ng3 {[%clk 0:03:03.4]} 9... e6 {[%clk 0:02:46.9]} 10. Be2
{[%clk 0:02:57.6]} 10... a6 {[%clk 0:02:47.6]} 11. a4 {[%clk 0:02:55.4]} 11...
Qb6 {[%clk 0:02:47.5]} 12. Qc2 {[%clk 0:02:26.6]} 12... Nb3 {[%clk 0:02:16.7]}
13. Rd1 {[%clk 0:02:26]} 13... Nd4 {[%clk 0:02:17.5]} 14. Qd2 {[%clk 0:02:27.3]}
14... exd5 {[%clk 0:02:17.2]} 15. cxd5 {[%clk 0:02:25.4]} 15... h5 {[%clk
0:02:12.5]} 16. O-O {[%clk 0:02:24.7]} 16... h4 {[%clk 0:01:54]} 17. Nh1 {[%clk
0:02:25.5]} 17... Bd7 {[%clk 0:01:47.7]} 18. Nf2 {[%clk 0:02:25]} 18... Qb4
{[%clk 0:01:46.8]} 19. e5 {[%clk 0:01:39]} 19... dxe5 {[%clk 0:01:43.3]} 20. Nd3
{[%clk 0:01:39.7]} 20... Qa5 {[%clk 0:01:30.2]} 21. Nxe5 {[%clk 0:01:16.9]}
21... h3 {[%clk 0:01:28.4]} 22. Nc4 {[%clk 0:01:14.4]} 22... Qb4 {[%clk
0:01:28.9]} 23. g3 {[%clk 0:01:02.3]} 23... Rfe8 {[%clk 0:01:29.3]} 24. Rf2
{[%clk 0:00:59.1]} 24... Nxe2+ {[%clk 0:01:20.2]} 25. Qxe2 {[%clk 0:00:57.8]}
25... b5 {[%clk 0:01:13.3]} 26. Nd6 {[%clk 0:00:40.7]} 26... Re5 {[%clk
0:01:05.2]} 27. axb5 {[%clk 0:00:37.4]} 27... c4 {[%clk 0:01:00.1]} 28. Nde4
{[%clk 0:00:33.5]} 28... Nxe4 {[%clk 0:00:50.1]} 29. fxe4 {[%clk 0:00:35.4]}
29... axb5 {[%clk 0:00:45.7]} 30. Bd4 {[%clk 0:00:36.4]} 30... Qd6 {[%clk
0:00:47.3]} 31. Qf3 {[%clk 0:00:33.7]} 31... Rf8 {[%clk 0:00:47.4]} 32. Ne2
{[%clk 0:00:26.7]} 32... b4 {[%clk 0:00:38.3]} 33. Bxe5 {[%clk 0:00:23.1]} 33...
Bxe5 {[%clk 0:00:38.6]} 34. Nd4 {[%clk 0:00:24.6]} 34... Qc5 {[%clk 0:00:36.1]}
35. Qe3 {[%clk 0:00:21.1]} 35... Ba4 {[%clk 0:00:35.2]} 36. Rdd2 {[%clk
0:00:18.3]} 36... c3 {[%clk 0:00:36.1]} 37. bxc3 {[%clk 0:00:19.2]} 37... bxc3
{[%clk 0:00:36.9]} 38. Rd3 {[%clk 0:00:20.3]} 38... Rc8 {[%clk 0:00:30.9]} 39.
Nc2 {[%clk 0:00:15.2]} 39... Qc4 {[%clk 0:00:18]} 40. Rd1 {[%clk 0:00:13.8]}
40... Rb8 {[%clk 0:00:15.6]} 41. d6 {[%clk 0:00:12.4]} 41... Bxc2 {[%clk
0:00:13]} 42. Rxc2 {[%clk 0:00:12.9]} 42... Qc6 {[%clk 0:00:09.1]} 43. d7 {[%clk
0:00:12.6]} 43... Rd8 {[%clk 0:00:10.2]} 44. Qd3 {[%clk 0:00:13.4]} 44... Bg7
{[%clk 0:00:09.8]} 45. Kh1 {[%clk 0:00:11.4]} 45... Rxd7 {[%clk 0:00:09.8]} 46.
Qxd7 {[%clk 0:00:08]} 46... Qxe4+ {[%clk 0:00:11.4]} 47. Kg1 {[%clk 0:00:09.9]}
47... Qxc2 {[%clk 0:00:12.6]} 48. Qc8+ {[%clk 0:00:06.2]} 48... Bf8 {[%clk
0:00:14]} 0-1

[Event "*** Titled Tuesday 3|2 Blitz (Late)"]
[Site "Chess.com"]
[Date "2016.11.01"]
[Round "5"]
[White "psv98"]
[Black "Iball95"]
[Result "1-0"]
[WhiteElo "2618"]
[BlackElo "2478"]
[TimeControl "180+2"]
[EndTime "18:05:38 PDT"]
[Termination "psv98 won by checkmate"]

1. c4 {[%clk 0:03:01.9]} 1... e5 {[%clk 0:03:00.6]} 2. Nc3 {[%clk 0:03:01.7]}
2... Nc6 {[%clk 0:03:02.1]} 3. Nf3 {[%clk 0:02:59.9]} 3... Nf6 {[%clk
0:03:01.9]} 4. g3 {[%clk 0:02:59.8]} 4... Bb4 {[%clk 0:03:00.7]} 5. Bg2 {[%clk
0:03:00.7]} 5... O-O {[%clk 0:03:00]} 6. O-O {[%clk 0:03:02.2]} 6... Re8 {[%clk
0:03:00.9]} 7. d3 {[%clk 0:03:02.5]} 7... d6 {[%clk 0:02:52.8]} 8. Bd2 {[%clk
0:02:51.6]} 8... a6 {[%clk 0:02:48]} 9. Ne4 {[%clk 0:02:45]} 9... Nxe4 {[%clk
0:02:41.3]} 10. dxe4 {[%clk 0:02:46.2]} 10... Bc5 {[%clk 0:02:28.2]} 11. Ne1
{[%clk 0:02:34.5]} 11... Be6 {[%clk 0:02:28.1]} 12. Rc1 {[%clk 0:02:32.4]} 12...
Qd7 {[%clk 0:02:28.1]} 13. Nd3 {[%clk 0:02:30.1]} 13... Ba7 {[%clk 0:02:29.1]}
14. e3 {[%clk 0:02:28.5]} 14... Rab8 {[%clk 0:02:25.3]} 15. Qc2 {[%clk
0:02:21.7]} 15... Bh3 {[%clk 0:02:24]} 16. b4 {[%clk 0:02:18]} 16... Bxg2 {[%clk
0:02:23.3]} 17. Kxg2 {[%clk 0:02:19.9]} 17... f5 {[%clk 0:02:24.2]} 18. exf5
{[%clk 0:01:59.6]} 18... Qxf5 {[%clk 0:02:26.1]} 19. c5 {[%clk 0:02:00.8]} 19...
Rf8 {[%clk 0:02:19.6]} 20. Qc4+ {[%clk 0:01:50.5]} 20... Kh8 {[%clk 0:02:20]}
21. f3 {[%clk 0:01:47.3]} 21... d5 {[%clk 0:02:20.4]} 22. Qc2 {[%clk 0:01:45.3]}
22... e4 {[%clk 0:02:16.3]} 23. Nf4 {[%clk 0:01:44.4]} 23... Ne5 {[%clk
0:01:49.6]} 24. fxe4 {[%clk 0:01:40.4]} 24... dxe4 {[%clk 0:01:51.5]} 25. Bc3
{[%clk 0:01:41.2]} 25... Nf3 {[%clk 0:01:44.6]} 26. Rcd1 {[%clk 0:01:41.5]}
26... Rbd8 {[%clk 0:01:43.3]} 27. Rxd8 {[%clk 0:01:38.9]} 27... Rxd8 {[%clk
0:01:45.2]} 28. Rd1 {[%clk 0:01:39.8]} 28... Rd7 {[%clk 0:01:25.7]} 29. Rxd7
{[%clk 0:01:36.5]} 29... Qxd7 {[%clk 0:01:27.6]} 30. Qxe4 {[%clk 0:01:35.3]}
30... Ng5 {[%clk 0:01:26]} 31. Qe5 {[%clk 0:01:07]} 31... Qc6+ {[%clk
0:01:07.6]} 32. Nd5 {[%clk 0:01:08.4]} 32... Ne6 {[%clk 0:01:04.2]} 33. e4
{[%clk 0:01:09.8]} 33... Qd7 {[%clk 0:00:59.7]} 34. Nf4 {[%clk 0:00:44.6]} 34...
Nxf4+ {[%clk 0:01:00.6]} 35. Qxf4 {[%clk 0:00:45.4]} 35... Kg8 {[%clk 0:01:02]}
36. Qe5 {[%clk 0:00:42.9]} 36... c6 {[%clk 0:01:00.9]} 37. h3 {[%clk 0:00:33.4]}
37... h6 {[%clk 0:01:02.2]} 38. g4 {[%clk 0:00:34.4]} 38... Qf7 {[%clk
0:00:58.8]} 39. a3 {[%clk 0:00:27.2]} 39... Qf8 {[%clk 0:00:57.1]} 40. Qe6+
{[%clk 0:00:26.7]} 40... Qf7 {[%clk 0:00:52.6]} 41. Qc8+ {[%clk 0:00:25.4]}
41... Kh7 {[%clk 0:00:52.3]} 42. Qf5+ {[%clk 0:00:25.6]} 42... Kg8 {[%clk
0:00:39]} 43. Be5 {[%clk 0:00:11.5]} 43... Qa2+ {[%clk 0:00:36.5]} 44. Kg3
{[%clk 0:00:12.8]} 44... Qxa3+ {[%clk 0:00:30.5]} 45. Kh4 {[%clk 0:00:14.2]}
45... Qxb4 {[%clk 0:00:30.3]} 46. Qg6 {[%clk 0:00:07.9]} 46... Kf8 {[%clk
0:00:13.5]} 47. Bd6+ {[%clk 0:00:09.1]} 47... Kg8 {[%clk 0:00:14]} 48. Be5
{[%clk 0:00:11]} 48... Kf8 {[%clk 0:00:15]} 49. Bxg7+ {[%clk 0:00:12.2]} 49...
Ke7 {[%clk 0:00:16.2]} 50. Qf6+ {[%clk 0:00:11.4]} 50... Kd7 {[%clk 0:00:16.3]}
51. Qf7+ {[%clk 0:00:12.6]} 51... Kc8 {[%clk 0:00:17.4]} 52. Qe8+ {[%clk
0:00:13.3]} 52... Kc7 {[%clk 0:00:17.7]} 53. Be5# {[%clk 0:00:14.9]} 1-0

[Event "*** Titled Tuesday 3|2 Blitz (Late)"]
[Site "Chess.com"]
[Date "2016.11.01"]
[Round "5"]
[White "Gau_truc_lon"]
[Black "Quiet_Desperation"]
[Result "0-1"]
[WhiteElo "2200"]
[BlackElo "2288"]
[TimeControl "180+2"]
[EndTime "18:05:46 PDT"]
[Termination "Quiet_Desperation won by resignation"]

1. c4 {[%clk 0:03:01.9]} 1... Nf6 {[%clk 0:03:00.6]} 2. Nc3 {[%clk 0:03:02]}
2... e6 {[%clk 0:03:00.9]} 3. e4 {[%clk 0:03:02.4]} 3... Nc6 {[%clk 0:03:01.5]}
4. d4 {[%clk 0:03:01.7]} 4... Bb4 {[%clk 0:03:00.1]} 5. e5 {[%clk 0:03:02.8]}
5... Ne4 {[%clk 0:03:01.2]} 6. Ne2 {[%clk 0:02:32.5]} 6... O-O {[%clk
0:02:58.3]} 7. g3 {[%clk 0:02:26.6]} 7... f5 {[%clk 0:02:53.8]} 8. Bg2 {[%clk
0:02:25.6]} 8... Ng5 {[%clk 0:02:48.8]} 9. O-O {[%clk 0:02:16.4]} 9... Be7
{[%clk 0:02:45.8]} 10. d5 {[%clk 0:02:13.8]} 10... Nb8 {[%clk 0:02:45.2]} 11. d6
{[%clk 0:01:44.7]} 11... cxd6 {[%clk 0:02:43.6]} 12. exd6 {[%clk 0:01:46.6]}
12... Bf6 {[%clk 0:02:43.8]} 13. Nb5 {[%clk 0:01:31.6]} 13... Nc6 {[%clk
0:02:39.7]} 14. Be3 {[%clk 0:01:21.5]} 14... a6 {[%clk 0:02:37.7]} 15. Nc7
{[%clk 0:01:20.8]} 15... Rb8 {[%clk 0:02:38.9]} 16. Bb6 {[%clk 0:01:19]} 16...
Ne4 {[%clk 0:02:23]} 17. f4 {[%clk 0:00:47.6]} 17... Rf7 {[%clk 0:01:55.4]} 18.
Rb1 {[%clk 0:00:34.1]} 18... Qf8 {[%clk 0:01:53.9]} 19. c5 {[%clk 0:00:35.2]}
19... g5 {[%clk 0:01:37.7]} 20. Qd3 {[%clk 0:00:34.8]} 20... Nb4 {[%clk
0:01:32.5]} 21. Qb3 {[%clk 0:00:34.8]} 21... a5 {[%clk 0:01:26.4]} 22. Rbd1
{[%clk 0:00:32.6]} 22... g4 {[%clk 0:01:12.5]} 23. a3 {[%clk 0:00:32.7]} 23...
Nc6 {[%clk 0:01:12.7]} 24. Qc2 {[%clk 0:00:28.4]} 24... h5 {[%clk 0:00:57.7]}
25. Bxe4 {[%clk 0:00:28.8]} 25... fxe4 {[%clk 0:00:59.3]} 26. Qxe4 {[%clk
0:00:30.7]} 26... h4 {[%clk 0:01:00.8]} 27. gxh4 {[%clk 0:00:29.6]} 27... Rg7
{[%clk 0:00:56.1]} 28. Ng3 {[%clk 0:00:29.9]} 28... Bxh4 {[%clk 0:00:57.2]} 29.
Qg2 {[%clk 0:00:25.1]} 29... Bxg3 {[%clk 0:00:51.1]} 30. Qxg3 {[%clk 0:00:25.8]}
30... Nd8 {[%clk 0:00:51.8]} 31. Ba7 {[%clk 0:00:24.6]} 31... Nf7 {[%clk
0:00:48]} 32. Bxb8 {[%clk 0:00:25.2]} 32... Nh6 {[%clk 0:00:49.6]} 33. Ba7
{[%clk 0:00:25.2]} 33... Nf5 {[%clk 0:00:50.6]} 34. Qe1 {[%clk 0:00:22.8]} 34...
g3 {[%clk 0:00:49.3]} 35. h3 {[%clk 0:00:24]} 35... b6 {[%clk 0:00:49]} 36. Bxb6
{[%clk 0:00:21.3]} 36... Bb7 {[%clk 0:00:49]} 37. Rd2 {[%clk 0:00:20.4]} 37...
g2 {[%clk 0:00:48.3]} 38. Rff2 {[%clk 0:00:19.6]} 38... Nh4 {[%clk 0:00:43.5]}
39. Qe3 {[%clk 0:00:15.6]} 39... Qf5 {[%clk 0:00:38.9]} 40. c6 {[%clk
0:00:15.6]} 40... Bxc6 {[%clk 0:00:38.6]} 41. Rd1 {[%clk 0:00:13.8]} 41... Rh7
{[%clk 0:00:20.9]} 42. Bd4 {[%clk 0:00:13.2]} 42... Ng6 {[%clk 0:00:21.9]} 43.
Ne8 {[%clk 0:00:13.4]} 43... Rxh3 {[%clk 0:00:21.1]} 44. Nf6+ {[%clk 0:00:13.7]}
44... Kf7 {[%clk 0:00:20]} 45. Rxg2 {[%clk 0:00:05.5]} 45... Rxe3 {[%clk
0:00:19.4]} 46. Bxe3 {[%clk 0:00:06]} 46... Qxf6 {[%clk 0:00:19.5]} 47. Rf2
{[%clk 0:00:06.4]} 47... Qf5 {[%clk 0:00:19.3]} 48. Kf1 {[%clk 0:00:07]} 48...
Bb5+ {[%clk 0:00:16.2]} 49. Ke1 {[%clk 0:00:08]} 49... Nh4 {[%clk 0:00:16.4]}
50. Kd2 {[%clk 0:00:08.1]} 50... Qe4 {[%clk 0:00:17.3]} 51. Bb6 {[%clk
0:00:07.2]} 51... Nf3+ {[%clk 0:00:16.4]} 52. Rxf3 {[%clk 0:00:06.3]} 52... Qxf3
{[%clk 0:00:17]} 53. Be3 {[%clk 0:00:07.2]} 53... Qe2+ {[%clk 0:00:17]} 0-1